lending/lending_fUSD_20240908
["ID","MTS","AMOUNT","RATE_DAILY","PERIOD"]
[337541870,1725801040715,-780.95245934,0.00014733,2]
[337541871,1725801040725,-9307.0,0.00014736,2]
[337541872,1725801040735,-3005.812,0.00014736,2]
[337541873,1725801040745,-150.0,0.00014736,2]
[337541874,1725801040755,-1079.0,0.00014736,2]
[337541875,1725801040764,-215.0,0.0001474,2]
[337541876,1725801040774,-201.0,0.0001474,2]
[337541877,1725801040783,-201.0,0.0001475,2]
[337541878,1725801040793,-348.0,0.0001475,2]
[337541879,1725801040803,-407.30040222,0.0001475,2]
[337541880,1725801040812,-219.0,0.0001475,2]
[337541881,1725801040821,-780.95245934,0.00014767,2]
[337541882,1725801040831,-4964.16302982,0.000148,2]
[337541883,1725801040842,-780.95245934,0.000148,2]
[337541884,1725801040851,-826.0,0.000148,5]
[337541885,1725801040861,-215.0,0.0001481,2]
[337541886,1725801040871,-201.0,0.0001481,2]
[337541887,1725801040882,-407.30040222,0.00014825,2]
[337541888,1725801040891,-780.95245934,0.00014833,2]
[337541889,1725801040901,-150.0,0.00014864,2]
[337541890,1725801040911,-150.309,0.00014864,2]
[337541891,1725801040920,-150.0,0.00014864,2]
[337541892,1725801040928,-252.866,0.00014864,2]
[337541893,1725801040938,-1260.0,0.00014865,2]
[337541894,1725801040947,-447.0,0.00014865,2]
[337541895,1725801040956,-624.0,0.00014865,2]
[337541896,1725801040966,-1546.0,0.00014865,2]
[337541897,1725801040975,-1899.0,0.00014865,2]
[337541898,1725801040984,-663.492,0.00014865,2]
[337541899,1725801040994,-780.95245934,0.00014867,2]
[337541900,1725801041003,-215.0,0.0001487,2]
[337541901,1725801041012,-201.0,0.0001487,2]
[337541902,1725801041022,-201.0,0.0001488,2]
[337541903,1725801041031,-348.0,0.0001488,2]
[337541904,1725801041040,-219.0,0.0001488,2]
[337541905,1725801041049,-27000.0,0.000149,2]
[337541906,1725801041058,-407.30040222,0.000149,2]
[337541907,1725801041068,-150.0,0.000149,2]
[337541908,1725801041077,-1922.6652737,0.000149,2]
[337541909,1725801041087,-13929.69088283,0.000149,2]
[337541910,1725801041096,-182.91452335,0.000149,2]
[337541911,1725801041105,-780.95245934,0.000149,2]
[337541912,1725801041115,-336.81543073,0.000149,2]
[337541913,1725801041125,-215.0,0.0001493,2]
[337541914,1725801041134,-201.0,0.0001493,2]
[337541915,1725801041143,-1000.0,0.0001497,2]
[337541916,1725801041153,-1000.0,0.0001497,2]
[337541917,1725801041163,-1000.0,0.0001497,2]
[337541918,1725801041172,-1000.0,0.0001497,2]
[337541919,1725801041182,-1000.0,0.0001497,2]
[337541920,1725801041192,-1000.0,0.0001497,2]
[337541921,1725801041203,-1000.0,0.0001497,2]
[337541922,1725801041212,-1723.08223988,0.0001497,2]
[337541923,1725801041222,-500.0,0.0001497,2]
[337541924,1725801041231,-500.0,0.0001497,2]
[337541925,1725801041240,-500.0,0.0001497,2]
[337541926,1725801041250,-500.0,0.0001497,2]
[337541927,1725801041260,-500.0,0.0001497,2]
[337541928,1725801041269,-500.0,0.0001497,2]
[337541929,1725801041280,-816.01041337,0.0001497,2]
[337541930,1725801041290,-500.0,0.00014973,2]
[337541931,1725801041299,-151.97333,0.00014989,2]
[337541932,1725801041309,-155.148131,0.00014989,2]
[337541933,1725801041318,-155.148131,0.00014989,2]
[337541934,1725801041328,-151.0,0.00014989,2]
[337541935,1725801041337,-151.0,0.00014989,2]
[337541936,1725801041347,-155.57775669,0.00014989,2]
[337541937,1725801041356,-151.0,0.00014989,2]
[337541938,1725801041368,-215.0,0.0001499,2]
[337541939,1725801041378,-201.0,0.0001499,2]
[337541940,1725801041387,-201.0,0.0001499,2]
[337541941,1725801041397,-348.0,0.0001499,2]
[337541942,1725801041406,-219.0,0.0001499,2]
[337541943,1725801041415,-151.0,0.0001499,2]
[337541944,1725801041425,-153.664012,0.0001499,2]
[337541945,1725801041435,-151.0,0.0001499,2]
[337541946,1725801041445,-151.0,0.0001499,2]
[337541947,1725801041454,-151.0,0.0001499,2]
[337541948,1725801041464,-1006.7141709,0.0001499,2]
[337541949,1725801041473,-795.0819757,0.0001499,2]
[337541950,1725801041483,-583.4497805,0.0001499,2]
[337541951,1725801041496,-371.8175853,0.0001499,2]
[337541952,1725801041506,-160.18539,0.0001499,2]
[337541953,1725801041516,-331.117907,0.0001499,2]
[337541954,1725801041526,-331.117907,0.0001499,2]
[337541955,1725801041536,-151.0,0.0001499,2]
[337541956,1725801041545,-151.0,0.0001499,2]
[337541957,1725801041555,-151.0,0.0001499,2]
[337541958,1725801041565,-151.0,0.0001499,2]
[337541959,1725801041574,-151.0,0.0001499,2]
[337541960,1725801041584,-151.0,0.0001499,2]
[337541961,1725801041594,-151.0,0.0001499,2]
[337541962,1725801041604,-151.0,0.0001499,2]
[337541963,1725801041613,-151.0,0.0001499,2]
[337541964,1725801041623,-179.120572,0.0001499,2]
[337541965,1725801041633,-179.120572,0.0001499,2]
[337541966,1725801041642,-151.0,0.0001499,2]
[337541967,1725801041652,-346.016019,0.0001499,2]
[337541968,1725801041662,-1917.1025581,0.0001499,2]
[337541969,1725801041672,-1617.6470283,0.0001499,2]
[337541970,1725801041683,-1318.1914986,0.0001499,2]
[337541971,1725801041693,-1018.7359688,0.0001499,2]
[337541972,1725801041702,-719.2804391,0.0001499,2]
[337541973,1725801041712,-346.016019,0.0001499,2]
[337541974,1725801041721,-334.361037,0.0001499,2]
[337541975,1725801041733,-698.74486,0.0001499,2]
[337541976,1725801041742,-334.361037,0.0001499,2]
[337541977,1725801041751,-698.74486,0.0001499,2]
[337541978,1725801041761,-281.592042,0.0001499,2]
[337541979,1725801041770,-281.592042,0.0001499,2]
[337541980,1725801041779,-151.0,0.0001499,2]
[337541981,1725801041789,-1201.1639659,0.0001499,2]
[337541982,1725801041798,-1013.5395792,0.0001499,2]
[337541983,1725801041808,-825.9151924,0.0001499,2]
[337541984,1725801041818,-638.2908057,0.0001499,2]
[337541985,1725801041827,-450.666419,0.0001499,2]
[337541986,1725801041836,-166.746458,0.0001499,2]
[337541987,1725801041845,-19279.5590403,0.0001499,2]
[337541988,1725801041855,-16268.0505837,0.0001499,2]
[337541989,1725801041865,-13256.5421272,0.0001499,2]
[337541990,1725801041875,-10245.0336707,0.0001499,2]
[337541991,1725801041884,-7233.5252142,0.0001499,2]
[337541992,1725801041894,-150.06,0.0001499,2]
[337541993,1725801041904,-150.06,0.0001499,2]
[337541994,1725801041913,-150.06,0.0001499,2]
[337541995,1725801041923,-1218.3463661,0.00014993,2]
[337541996,1725801041932,-2216.5580878,0.00014993,2]
[337541997,1725801041941,-1388.7883526,0.00014993,2]
[337541998,1725801041951,-22291.0674968,0.00014993,2]
[337541999,1725801041960,-670996.57085246,0.00015,2]
[337542000,1725801041969,-4139756.77456131,0.00015,2]
[337542001,1725801042007,-913.1421231,0.00015,2]
[337542007,1725801043267,-982.9453663,0.0001499,2]
[337542008,1725801043277,-831.7230023,0.0001499,2]
[337542009,1725801043286,-1547.97583035,0.00015,2]
[337542014,1725801046399,-4084.3711218,0.00014014,2]
[337542015,1725801046413,-472.79547438,0.00014014,2]
[337542016,1725801046423,-680.5006382,0.0001499,2]
[337542017,1725801046433,-529.2782741,0.0001499,2]
[337542018,1725801046442,-378.0559101,0.0001499,2]
[337542019,1725801046452,-3369.06970322,0.00015,2]
[337542020,1725801065626,188.8,0.00010959,2]
[337542021,1725801089995,500.0,0.00011164,2]
[337542022,1725801090908,500.0,0.00011164,2]
[337542023,1725801131633,750.0,0.00011,2]
[337542024,1725801132716,800.0,0.00013,2]
[337542025,1725801213605,31166.0,0.00025,60]
[337542026,1725801401625,307.5,0.00012223,2]
[337542027,1725801402228,500.0,0.00011164,2]
[337542028,1725801402328,500.0,0.00011164,2]
[337542029,1725801404173,500.0,0.00012534,2]
[337542030,1725801453171,1077.69317146,0.00026997,120]
[337542031,1725801573345,500.0,0.00011164,2]
[337542032,1725801574942,500.0,0.00012534,2]
[337542033,1725801575069,500.0,0.00011164,2]
[337542035,1725801608765,600.0,8.22e-05,2]
[337542036,1725801608959,500.0,8.22e-05,2]
[337542037,1725801610098,600.0,9.59e-05,2]
[337542038,1725801610549,500.0,0.0001096,2]
[337542039,1725801611733,600.0,0.0001096,2]
[337542040,1725801612452,500.0,0.000137,2]
[337542041,1725801613306,600.0,0.0001233,2]
[337542042,1725801945970,155.798655,0.00025,60]
[337542047,1725802054883,175.2,0.00010959,2]
[337542048,1725802083160,192.26333019,0.00013,2]
[337542049,1725802083185,25000.0,0.00013,2]
[337542052,1725802109837,-7507.65482693,0.00013,2]
[337542055,1725802109905,-7507.65482693,0.00013,2]
[337542056,1725802109937,-7507.65482693,0.00013,2]
[337542058,1725802109982,-7507.65482693,0.00013,2]
[337542059,1725802110043,-7507.65482693,0.00013,2]
[337542060,1725802110115,-5802.14322976,0.00013,2]
[337542061,1725802110193,-7507.65482693,0.00013,2]
[337542064,1725802227848,342.39,0.00011672,2]
[337542078,1725802232287,-172.0,0.00012999,2]
[337542080,1725802232296,-328.0,0.00012999,2]
[337542082,1725802232307,-460.0,0.00012999,2]
[337542085,1725802232317,-19.84771151,0.00013,2]
[337542087,1725802232328,-856.70953894,0.00013,2]
[337542088,1725802232339,-271.01661247,0.00013,2]
[337542089,1725802232352,-361.36554768,0.00013,2]
[337542090,1725802232386,-300.3,0.00013,2]
[337542091,1725802232397,-851.45896926,0.00013,2]
[337542092,1725802232409,-1316.73334251,0.00013,2]
[337542093,1725802232431,-1036.15119989,0.00013,2]
[337542094,1725802232441,-386.86783398,0.00013,2]
[337542095,1725802232452,-163.78,0.00013579,2]
[337542096,1725802232462,-250.0,0.00013628,2]
[337542097,1725802232473,-158.11,0.00013699,2]
[337542098,1725802232482,-162.26,0.000137,2]
[337542099,1725802232493,-1000.0,0.00013743,2]
[337542100,1725802232503,-161.29,0.00013828,2]
[337542101,1725802232513,-1626.70096613,0.000139,2]
[337542102,1725802232524,-353.3151575,0.000139,2]
[337542103,1725802232537,-905.94463416,0.000139,2]
[337542104,1725802232548,-3568.92372753,0.000139,2]
[337542105,1725802232570,-500.0,0.00013901,2]
[337542106,1725802232580,-500.0,0.00013904,2]
[337542107,1725802232590,-300.94833279,0.00013919,2]
[337542123,1725802233215,-1699.05166721,0.00013919,2]
[337542124,1725802233225,-5348.75,0.0001393,2]
[337542125,1725802233234,-342.39,0.00013936,2]
[337542126,1725802233243,-179.26,0.000141,2]
[337542127,1725802233253,-2825.42817237,0.00014126,2]
[337542128,1725802233262,-776.71202213,0.0001419,2]
[337542129,1725802233274,-595.99891309,0.0001419,2]
[337542130,1725802233283,-150.0,0.000146,2]
[337542131,1725802233293,-499.99,0.000146,2]
[337542132,1725802233302,-150.0,0.00014679,2]
[337542133,1725802233312,-2224.53793745,0.0001468,2]
[337542134,1725802233358,-7052.65238986,0.0001468,2]
[337542135,1725802233370,-47143.09893955,0.0001468,2]
[337542136,1725802233381,-646.80195409,0.0001468,2]
[337542137,1725802233393,-1308.0,0.0001468,2]
[337542138,1725802233421,-5437.25,0.0001468,2]
[337542139,1725802233432,-5439.96,0.0001468,2]
[337542140,1725802233443,-1472.1462219,0.0001468,2]
[337542141,1725802233454,-14689.096422,0.0001468,2]
[337542142,1725802233465,-1388.73477412,0.0001468,2]
[337542143,1725802233504,-3455.8228415,0.0001468,2]
[337542144,1725802233515,-1386.0,0.0001468,2]
[337542148,1725802238301,-5696.0751405,0.0001468,2]
[337542149,1725802238313,-2387.02265611,0.0001468,2]
[337542150,1725802238325,-47.3401192,0.0001468,2]
[337542151,1725802238335,-436.19898252,0.00014766,2]
[337542152,1725802238344,-287.9573576,0.00014781,2]
[337542153,1725802238355,-148.24162491,0.00014781,2]
[337542154,1725802238365,-436.19898251,0.00014796,2]
[337542155,1725802238374,-349.04954,0.000148,7]
[337542156,1725802238383,-436.19898251,0.00014811,2]
[337542157,1725802238393,-158.724,0.00014811,2]
[337542158,1725802238402,-436.19898251,0.00014826,2]
[337542159,1725802238419,-436.19898251,0.0001484,2]
[337542160,1725802238429,-2668.40734,0.0001485,2]
[337542161,1725802238438,-436.19898251,0.00014855,2]
[337542162,1725802238447,-349.76358912,0.00014866,2]
[337542163,1725802238484,-568.30082722,0.00014866,2]
[337542164,1725802238497,-29815.38654855,0.00014866,2]
[337542165,1725802238520,-507.02834587,0.00014866,2]
[337542166,1725802238543,-675.54813812,0.00014866,2]
[337542167,1725802238555,-3000.56416943,0.00014866,2]
[337542168,1725802238566,-14913.977862,0.00014866,2]
[337542169,1725802238579,-499.35685565,0.00014866,2]
[337542170,1725802238601,-22833.38855947,0.00014866,2]
[337542171,1725802238613,-9553.154996,0.00014866,2]
[337542172,1725802238624,-9084.2900005,0.00014866,2]
[337542173,1725802238635,-13724.235,0.00014866,2]
[337542174,1725802238646,-1384.75,0.00014866,2]
[337542175,1725802238656,-5915.5,0.00014866,2]
[337542176,1725802238669,-2111.13867946,0.00014866,2]
[337542177,1725802238680,-5065.1991,0.00014866,2]
[337542178,1725802238733,-328.0938794,0.00014866,2]
[337542180,1725802238746,-701.89106013,0.00014866,2]
[337542182,1725802238757,-474.2466,0.00014866,2]
[337542184,1725802238768,-9964.43579789,0.00014866,2]
[337542186,1725802238779,-348.826,0.00014866,2]
[337542188,1725802238789,-555.456,0.00014866,2]
[337542190,1725802238798,-931.0,0.00014866,2]
[337542192,1725802238807,-557.0,0.00014866,2]
[337542194,1725802238817,-810.0,0.00014866,2]
[337542196,1725802238827,-436.19898251,0.0001487,2]
[337542198,1725802238836,-5594.59619606,0.0001488,3]
[337542200,1725802238846,-436.19898251,0.00014885,2]
[337542202,1725802238855,-2681.87,0.0001489,2]
[337542204,1725802238865,-2797.29809803,0.0001489,3]
[337542205,1725802238874,-171.6646934,0.0001489,2]
[337542207,1725802238883,-310.39588909,0.0001489,2]
[337542209,1725802238894,-3984.0528,0.0001489,2]
[337542213,1725802239080,-1867.8501,0.0001489,2]
[337542214,1725802239142,-500.0,0.0001489,2]
[337542215,1725802239152,-1448.2095,0.0001489,2]
[337542216,1725802239168,-1000.0,0.000149,2]
[337542217,1725802239178,-226.0,0.000149,2]
[337542218,1725802239188,-359.0,0.000149,2]
[337542219,1725802239199,-436.19898251,0.000149,2]
[337542220,1725802239209,-170.59,0.00014907,2]
[337542221,1725802239218,-24850.52901075,0.0001498,3]
[337542222,1725802239229,-795.2682055,0.0001498,3]
[337542223,1725802239239,-1007.38297438,0.0001498,3]
[337542224,1725802239250,-567.69312,0.0001498,3]
[337542225,1725802240429,-1060.86500547,0.0001498,3]
[337542226,1725802240547,-5307.9,0.0001498,3]
[337542227,1725802240559,-711.24,0.0001498,3]
[337542228,1725802240607,-14967.60539131,0.0001498,3]
[337542229,1725802240619,-328.47396994,0.0001498,3]
[337542230,1725802240632,-453.58371744,0.0001498,3]
[337542231,1725802240668,-270.59,0.0001498,3]
[337542232,1725802240680,-496.07624443,0.0001498,3]
[337542233,1725802240691,-506.06036781,0.0001498,3]
[337542234,1725802240785,-588.950825,0.0001498,3]
[337542303,1725802243976,-4160.0,0.00014866,2]
[337542304,1725802243986,-632.79500002,0.00014866,2]
[337542305,1725802244176,-511.20499998,0.00014866,2]
[337542306,1725802244186,-625.61711513,0.0001498,3]
[337542307,1725802244197,-311.42,0.0001498,3]
[337542308,1725802244255,-3697.58875931,0.0001498,3]
[337542309,1725802244268,-7250.94882884,0.0001498,3]
[337542310,1725802244279,-2527.3723475,0.0001498,3]
[337542336,1725802246446,-496.72719915,0.0001498,3]
[337542339,1725802246458,-385.83626085,0.0001498,3]
[337542341,1725802246469,-369.60833495,0.0001498,3]
[337542350,1725802246906,-35922.69194924,0.0001498,3]
[337542351,1725802246918,-16124.8239832,0.0001498,3]
[337542353,1725802246931,-48319.08691635,0.0001499,3]
[337542382,1725802247204,-55.38503315,0.0001499,3]
[337542384,1725802247215,-150.06,0.0001499,2]
[337542386,1725802247224,-69.5244622,0.0001499,2]
[337542420,1725802257820,-1500.0,0.00015,14]
[337542421,1725802310609,800.0,0.00010068,2]
[337542422,1725802312205,800.0,0.00011438,2]
[337542423,1725802319380,1100.0,0.00010068,2]
[337542424,1725802320461,1100.0,0.00011438,2]
[337542425,1725802519352,300.0,0.00012,2]
[337542426,1725802802171,-800.0,0.00012808,2]
[337542427,1725802802191,-750.0,0.00012808,2]
[337542428,1725802835395,700.0,0.00010068,2]
[337542429,1725802837122,700.0,0.00011438,2]
[337542430,1725802911604,323.17,0.00011812,2]
[337542431,1725802929454,160.26842491,0.00012,2]
[337542432,1725802936305,750.0,0.00011,2]
[337542438,1725803404643,307.01,0.00011511,2]
[337542448,1725803431500,-350.0,0.00012808,2]
[337542450,1725803431511,-700.0,0.00012808,2]
[337542452,1725803431520,-800.0,0.00013,2]
[337542454,1725803431530,-25.42835547,0.00013336,2]
[337542456,1725803431541,-224.57164453,0.00013336,2]
[337542458,1725803431551,-160.07,0.0001337,2]
[337542460,1725803431560,-689.67835547,0.0001342,2]
[337542462,1725803431571,-110.32164453,0.0001342,2]
[337542464,1725803431581,-170.59,0.00013464,2]
[337542466,1725803431591,-107.97585684,0.00013596,2]
[337542467,1725803431602,-11699.84907785,0.00013596,2]
[337542468,1725803431647,-3206.11771593,0.00013596,2]
[337542469,1725803431695,-397.56791311,0.00013596,2]
[337542470,1725803431707,-1033.7,0.00013596,2]
[337542471,1725803431718,-642.3977412,0.00013596,2]
[337542472,1725803431751,-3702.08686573,0.00013596,2]
[337542473,1725803431762,-956.69375819,0.00013596,2]
[337542474,1725803431773,-603.27489612,0.00013596,2]
[337542475,1725803431785,-22451.33617503,0.00013596,2]
[337542476,1725803431795,-500.0,0.00013664,2]
[337542477,1725803431804,-1074.32,0.00013722,2]
[337542478,1725803431814,-150.0,0.00013729,2]
[337542480,1725803431823,-4232.89,0.0001373,2]
[337542482,1725803431833,-150.0,0.00013753,2]
[337542484,1725803431842,-307.01,0.00013775,2]
[337542486,1725803431852,-3797.88,0.00013786,2]
[337542487,1725803431861,-150.99,0.00013786,2]
[337542489,1725803431870,-200.0,0.00013876,2]
[337542491,1725803431879,-179.26,0.00013906,2]
[337542493,1725803431889,-200.87,0.00013995,2]
[337542494,1725803431899,-1100.0,0.00014178,2]
[337542495,1725803431909,-700.0,0.00014178,2]
[337542496,1725803431918,-844.68998161,0.0001437,2]
[337542497,1725803431928,-493.199,0.00014675,2]
[337542498,1725803431937,-130793.8078,0.00014766,2]
[337542499,1725803431946,-22897.71172685,0.00014775,2]
[337542500,1725803431955,-255.0,0.00014841,2]
[337542501,1725803431964,-152.11,0.00014841,2]
[337542502,1725803431974,-500.0,0.00014882,2]
[337542503,1725803431983,-500.0,0.00014891,2]
[337542504,1725803431992,-2028.1189,0.000149,2]
[337542505,1725803432002,-12501.8036,0.000149,2]
[337542506,1725803432011,-2223.7227,0.000149,2]
[337542507,1725803432021,-2987.3456,0.000149,2]
[337542508,1725803432031,-195.19191956,0.000149,2]
[337542509,1725803432041,-500.0,0.000149,2]
[337542510,1725803432051,-771.24122771,0.000149,2]
[337542511,1725803432060,-1000.0,0.000149,2]
[337542512,1725803432070,-2463.87423416,0.0001498,3]
[337542513,1725803432080,-969.91422476,0.0001498,3]
[337542514,1725803432095,-10669.0564724,0.0001499,3]
[337542515,1725803432106,-150.06,0.0001499,2]
[337542516,1725803432117,-204.4755378,0.0001499,2]
[337542517,1725803432127,-2452.5141591,0.0001499,2]
[337542518,1725803432139,-2635.3129553,0.0001499,2]
[337542519,1725803432148,-2818.1117515,0.0001499,2]
[337542520,1725803432158,-3000.9105476,0.0001499,2]
[337542521,1725803432169,-3183.7093438,0.0001499,2]
[337542522,1725803432179,-169.3614866,0.0001499,2]
[337542523,1725803432188,-182.4724656,0.0001499,2]
[337542524,1725803432197,-195.5834445,0.0001499,2]
[337542525,1725803432207,-208.6944235,0.0001499,2]
[337542526,1725803432216,-221.8054025,0.0001499,2]
[337542527,1725803432225,-2786.20235,0.0001499,2]
[337542528,1725803432234,-2651.06525288,0.0001499,3]
[337542531,1725803437548,-285.255,0.0001499,3]
[337542532,1725803437560,-3853.07932044,0.0001499,3]
[337542533,1725803437570,-150.06,0.0001499,2]
[337542534,1725803437579,-150.06,0.0001499,2]
[337542535,1725803437588,-150.06,0.0001499,2]
[337542536,1725803437597,-150.06,0.0001499,2]
[337542537,1725803437606,-150.06,0.0001499,2]
[337542538,1725803437616,-150.06,0.0001499,2]
[337542539,1725803437625,-150.06,0.0001499,2]
[337542540,1725803437634,-150.06,0.0001499,2]
[337542541,1725803437644,-150.06,0.0001499,2]
[337542542,1725803437653,-150.06,0.0001499,2]
[337542543,1725803437663,-150.06,0.0001499,2]
[337542544,1725803437672,-150.06,0.0001499,2]
[337542545,1725803437682,-150.06,0.0001499,2]
[337542546,1725803437691,-150.06,0.0001499,2]
[337542547,1725803437700,-150.06,0.0001499,2]
[337542548,1725803437710,-150.06,0.0001499,2]
[337542549,1725803437719,-150.06,0.0001499,2]
[337542550,1725803437728,-150.06,0.0001499,2]
[337542551,1725803437738,-196.16827053,0.00014999,2]
[337542552,1725803437747,-767.0,0.00015,2]
[337542553,1725803437757,-3200.86258413,0.00015,2]
[337542554,1725803437791,-515.89474926,0.00015,2]
[337542564,1725803437916,-427.26429641,0.00015,2]
[337542567,1725803437939,-392.21618951,0.00015,2]
[337542569,1725803437950,-345.07260495,0.00015,2]
[337542575,1725803437996,-6877.83252442,0.00015,2]
[337542596,1725803439567,-39.80863534,0.00015,2]
[337542597,1725803439711,-560.58454009,0.00015,2]
[337542598,1725803439776,-8817.28104593,0.00015,2]
[337542619,1725803442463,-478.07511524,0.00015,2]
[337542626,1725803445726,-5691.78609999,0.00015,2]
[337542627,1725803489733,500.0,0.00011164,2]
[337542628,1725803509160,700.0,0.00010068,2]
[337542629,1725803511376,700.0,0.00011438,2]
[337542721,1725803658702,1693.2098535,0.00016,30]
[337542722,1725803702560,700.0,0.00011068,2]
[337542723,1725803703138,500.0,9.972e-05,2]
[337542724,1725803726848,500.0,9.972e-05,2]
[337542725,1725803727943,500.0,0.00011342,2]
[337542726,1725803746543,156.383141,0.00025,60]
[337542727,1725803746861,156.383141,0.00025,60]
[337542728,1725803753695,155.82,0.00010959,2]
[337542732,1725803835261,-222.0,0.00012164,2]
[337542733,1725803835284,-500.0,0.00012164,2]
[337542734,1725803835307,-700.0,0.00012438,2]
[337542735,1725803835329,-500.0,0.00012712,2]
[337542736,1725803878764,500.0,0.00011068,2]
[337542738,1725803896482,600.0,0.00012164,2]
[337542739,1725803917889,500.0,0.00012164,2]
[337542740,1725803982725,337.03,0.00011939,2]
[337542741,1725804333246,201.77,0.00010959,2]
[337542742,1725804492850,320.17,0.00011125,2]
[337542743,1725804552636,219.73,0.00011,4]
[337542751,1725804631659,-1054.8607206,0.0001308,2]
[337542756,1725804632669,-267.95,0.0001308,2]
[337542757,1725804632693,-1127.2492794,0.0001308,2]
[337542758,1725804632703,-250.0,0.00013084,2]
[337542759,1725804632712,-250.0,0.00013092,2]
[337542760,1725804632723,-250.0,0.00013102,2]
[337542761,1725804632732,-150.39,0.0001318,2]
[337542762,1725804632742,-320.17,0.00013389,2]
[337542763,1725804632751,-159.61,0.00013427,2]
[337542764,1725804632761,-159.61,0.00013432,2]
[337542765,1725804632770,-159.61,0.00013436,2]
[337542766,1725804632780,-323.56587137,0.00013439,2]
[337542767,1725804632793,-177.93412863,0.00013439,2]
[337542768,1725804632803,-159.61,0.00013441,2]
[337542769,1725804632814,-300.0,0.00013442,2]
[337542770,1725804632823,-1852.42,0.00013443,2]
[337542771,1725804632833,-1083.05345738,0.00013443,2]
[337542772,1725804632842,-482.77,0.00013443,2]
[337542773,1725804632855,-1978.18207796,0.00013445,2]
[337542774,1725804632866,-1673.18792204,0.00013445,2]
[337542775,1725804632875,-159.61,0.00013446,2]
[337542776,1725804632885,-4.88784419,0.00013451,2]
[337542777,1725804632901,-154.72215581,0.00013451,2]
[337542778,1725804632910,-159.61,0.00013456,2]
[337542779,1725804632920,-135.66784419,0.0001346,2]
[337542780,1725804632931,-23.94215581,0.0001346,2]
[337542781,1725804632941,-159.61,0.00013465,2]
[337542782,1725804632950,-159.61,0.0001347,2]
[337542783,1725804632960,-128.98106921,0.00013475,2]
[337542784,1725804632972,-30.62893079,0.00013475,2]
[337542785,1725804632982,-159.61,0.0001348,2]
[337542786,1725804632992,-159.61,0.00013484,2]
[337542787,1725804633002,-159.61,0.00013489,2]
[337542788,1725804633011,-159.61,0.00013494,2]
[337542789,1725804633020,-264.62288272,0.00013503,2]
[337542790,1725804633063,-375.37711728,0.00013503,2]
[337542791,1725804633072,-152.11,0.00013503,2]
[337542792,1725804633082,-150.0,0.00013534,2]
[337542793,1725804633091,-10.84756555,0.00013534,2]
[337542794,1725804633108,-589.15243445,0.00013534,2]
[337542795,1725804633117,-500.0,0.00013534,2]
[337542796,1725804633127,-160.7,0.00013564,2]
[337542797,1725804633136,-164.76,0.00013611,2]
[337542798,1725804633145,-500.0,0.00013617,2]
[337542799,1725804633155,-157.84,0.00013699,2]
[337542800,1725804633165,-200.0,0.00013699,2]
[337542801,1725804633175,-1700.8337015,0.00013699,2]
[337542803,1725804638024,-1050.1662985,0.00013699,2]
[337542804,1725804638034,-157.84,0.00013699,2]
[337542805,1725804638043,-4418.68227903,0.00013805,2]
[337542838,1725804640599,-275.13996809,0.00013805,2]
[337542843,1725804642918,-500.030571,0.00013805,2]
[337542844,1725804642966,-1375.53718188,0.00013805,2]
[337542845,1725804642976,-500.0,0.00013808,2]
[337542846,1725804642986,-156.59,0.00013899,2]
[337542847,1725804642995,-360.0,0.00013947,2]
[337542848,1725804643005,-500.0,0.00014082,2]
[337542849,1725804643014,-162.26,0.00014092,2]
[337542850,1725804643024,-171.06,0.0001412,2]